[Event "Budapest IM-A ONE WEEK Feb 2024"]
[Site "Budapest"]
[Date "2024.02.27"]
[Round "3"]
[White "Papp, Sarah"]
[Black "Toth-Goczo, Melinda"]
[Result "1/2-1/2"]
[ECO "B20"]
[WhiteElo "2279"]
[BlackElo "2201"]
[Annotator "TA"]
[PlyCount "102"]
[EventDate "2024.02.25"]
[EventType "tourn"]
[EventCountry "HUN"]
[SourceTitle "playchess.com"]
[Source "ChessBase"]
[SourceQuality "1"]
[TimeControl "5400+30"]

{[%evp 18,102,33,22,32,35,30,31,53,22,87,87,98,91,96,79,95,80,81,74,77,60,75,63,56,61,110,120,112,76,95,72,60,64,73,81,80,23,126,115,112,110,248,240,276,285,270,293,399,323,376,327,464,477,477,469,508,431,525,518,508,489,960,282,282,275,281,279,286,0,0,-29989,-5318,-5318,29991,-5310,29994,-902,29997,29996,29997,-1167,29994,-29987,29994,-29988,29994]} 1. e4 {[%emt 0:00:03]} c5 {[%emt 0:00:04]} 2. d3 {[%emt 0:00:05]} Nc6 {[%emt 0:02:54]} 3. g3 {[%emt 0:00:05]} g6 {[%emt 0:09:55]} 4. Bg2 {[%emt 0:00:05]} Bg7 {[%emt 0:00:04]} 5. f4 {[%emt 0:00:06]} d6 {[%emt 0:02:25]} 6. Nf3 {[%emt 0:00:29]} e6 {[%emt 0:12:35]} 7. c3 {[%emt 0:00:14]} Nge7 {[%emt 0:00:14]} 8. O-O {[%emt 0:00:08]} O-O {[%emt 0:02:34]} 9. Be3 {[%emt 0:00:20]} f5 {[%emt 0:03:40]} 10. Nbd2 {[%emt 0:02:58]} Rb8 {[%emt 0:10:04]} 11. Rc1 {[%emt 0:11:14]} b6 {[%emt 0:12:53]} 12. Re1 {[%emt 0:02:06]} h6 {[%emt 0:07:38] Weiß steht etwas besser.} 13. Bf2 {[%emt 0:11:41]} Kh8 {[%emt 0:08:12]} (13... fxe4 $11 14. dxe4 (14. Nxe4 Nf5 $14) 14... e5) 14. d4 {[%emt 0:01:53]} fxe4 {[%emt 0:06:44]} 15. Nxe4 {[%emt 0:00:19][%cal Rd4c5]} c4 {[%emt 0:04:17]} 16. Nh4 {[%emt 0:05:26][%cal Oe4g5]} b5 {[%emt 0:03:07]} 17. Nd2 {[%emt 0:05:39][%cal Be4d2,Bd2f3,Bf3e5][%mdl 32] Schwarz muss nun Bxc6 beachten.} d5 {[%emt 0:00:36]} 18. Ndf3 {[%emt 0:04:13]} Kh7 {[%emt 0:05:30]} 19. Ne5 {[%emt 0:07:34]} Qc7 {[%emt 0:01:46]} 20. Qc2 {[%emt 0:05:47]} Nxe5 {[%emt 0:00:29]} 21. dxe5 {[%emt 0:01:18]} b4 {[%emt 0:01:27]} (21... a5 $14) 22. Nf3 {[%emt 0:07:12] Weiß steht aktiver.} Bd7 {[%emt 0:00:46]} 23. h4 {[%emt 0:06:51]} Nf5 {[%emt 0:02:02]} 24. g4 {[%emt 0:02:18]} Ne7 {[%emt 0:00:05]} 25. Be3 {[%emt 0:00:18]} Kh8 {[%emt 0:00:37]} 26. cxb4 {[%emt 0:05:58]} Rxb4 {[%emt 0:00:08]} 27. Qf2 {[%emt 0:00:16]} ({Besser ist} 27. b3 $16) 27... Rb7 {[%emt 0:01:37] [#]} (27... Nc6 $11) 28. b3 $1 $16 {[%emt 0:03:24][%mdl 512]} Bb5 {[%emt 0:00:38]} (28... Qc8 29. Bc5) 29. Nd4 {[%emt 0:02:14]} Qd7 {[%emt 0:00:22]} (29... Qc8 $16 {war einen Versuch wert.} 30. a4 Ba6) 30. bxc4 $18 {[%emt 0:01:15]} Bxc4 {[%emt 0:00:52]} 31. Rxc4 {[%emt 0:00:28]} dxc4 {[%emt 0:00:40]} 32. Bxb7 {[%emt 0:00:41] Ein starkes Läuferpaar.} Bxe5 {[%emt 0:00:28]} 33. Be4 {[%emt 0:02:47]} Bg7 {[%emt 0:00:38]} 34. Nf3 {[%emt 0:04:47]} e5 {[%emt 0:00:17]} (34... Nd5 $142 35. g5 (35. Bxa7 Rxf4 36. g5 e5 $18) (35. Bxg6 Qc7 $18) 35... Nxe3) 35. Qg3 {[%emt 0:00:43]} (35. Bxa7 Rxf4 36. Kh2 Qxg4 $11) 35... exf4 {[%emt 0:00:36]} 36. Bxf4 {[%emt 0:00:12]} c3 {[%emt 0:00:51]} 37. Be5 {[%emt 0:02:09]} Rf7 {[%emt 0:00:33]} 38. Bxg7+ {[%emt 0:00:59]} Kxg7 {[%emt 0:00:08]} 39. Kh1 {[%emt 0:01:10]} Nc6 {[%emt 0:00:26] Pariert Qe5+.} (39... Qc8 $142 40. Qe5+ Kg8) 40. Re3 $2 {[%emt 0:03:25]} (40. Ne5 Nxe5 41. Qxe5+ Kg8 42. Bd5 (42. Qxc3 Qxg4 43. Qe3 Qxh4+ 44. Kg2 Kg7 $18) (42. Bxg6 Rf8 $18)) 40... Qd1+ {[%emt 0:00:25]} 41. Qg1 {[%emt 0:00:40]} c2 {[%emt 0:00:25]} 42. Rc3 {[%emt 0:01:16]} (42. Bxc6 $2 Qxg1+ (42... c1=Q $2 43. Qxd1 Qxd1+ 44. Re1 $19) 43. Nxg1 c1=Q $19 (43... c1=R 44. Bf3 $14)) 42... Nd4 {[%emt 0:00:46]} 43. Nxd4 {[%emt 0:00:05]} ({Weiss braucht} 43. Bxc2 $1 $18 Qxg1+ 44. Nxg1) 43... Rf1 $40 {[%emt 0:00:14][%mdl 128] Schwarz greift an.} 44. Kg2 {[%emt 0:00:10][%mdl 8192]} c1=Q {[%emt 0:00:05]} (44... Rxg1+ $142 45. Kh2 Qxd4 (45... c1=R $2 46. Rxc1 Qxc1 47. Ne2 $19) (45... Qd2+ $2 46. Ne2 $19) 46. Rc7+ Kf8 (46... Kf6 47. Rxc2 Rxg4 48. Bg2 Qe3 49. Rc6+ Ke5 50. Rc2 Rxh4+ 51. Bh3 Rxh3+ 52. Kg2 Rg3+ 53. Kh2 Qg1#) 47. Rc8+ Ke7 48. Rc7+ Kd8 49. Rxc2 Rxg4 (49... Qxe4 50. Rd2+ Ke7 51. Kxg1 Qe1+ 52. Kg2 Qxd2+ 53. Kf3 Ke6 54. Ke4 Qb4+ 55. Kd3 Qxg4 56. Ke3 Kd5 57. a3 Qh3+ 58. Ke2 Ke4 59. Kd2 Qb3 60. Ke2 Qc2+ 61. Ke1 Kf3 62. Kf1 Qf2#) 50. Bg2 Qe3 (50... Rxh4+ 51. Bh3 Qe3 52. Rc8+ Ke7 53. Rc7+ Kd6 54. Rd7+ Kc6 55. Rc7+ Kxc7 56. Kg2 Rxh3 57. Kf1 Rh2 58. a4 Qf2#) 51. h5 Rh4+ (51... gxh5 52. Rb2 Rh4+ 53. Bh3 Rxh3+ 54. Kg2 Rg3+ 55. Kh2 Qg1#) 52. Bh3 Rxh3+ 53. Kg2 Rg3+ 54. Kh2 Qg1#) 45. Rxc1 $19 {[%emt 0:00:32] [#]} Kf6 $4 {[%emt 0:00:35][%mdl 8192] [#]} 46. Bd5 $4 {[%emt 0:01:21][%mdl 8192] [#]} a6 $4 {[%emt 0:00:50][%mdl 8192] [#]} 47. Nf3 $4 {[%emt 0:00:07][%mdl 8192] [#]} g5 $4 {[%emt 0:00:30][%mdl 8192]} 48. hxg5+ {[%emt 0:00:48]} hxg5 {[%emt 0:00:05]} 49. Bc6 $4 {[%emt 0:00:00][%mdl 8192] [#]} (49. Qb6+ {und alles wird gut.} Kg7 50. Rc7+ Kh8 51. Qh6#) 49... Ke7 $4 {[%emt 0:00:43][%mdl 8192] [#]} 50. Nxg5 $4 {[%emt 0:01:03][%mdl 8192] [#]} a5 $4 {[%emt 0:00:56][%mdl 8192] [#]} 51. a4 $4 {[%emt 0:00:35][%mdl 8192]} Rf5 $4 {[%emt 0:00:03][%mdl 40960] Eine wilde Partie.   Gewichteter Fehlerwert: Weiß=0.76/Schwarz=0.83.  Verlustzug:     	Weiß=1     	---        Gewinn verpasst:   	Weiß=1     	---        Fehler:       	Weiß=2     	Schwarz=7     Ungenau:       	Weiß=2     	Schwarz=1     OK:         	Weiß=10    	Schwarz=10    Brilliant:      	Weiß=1     	---       . Ein unerwartetes Ergebnis.} (51... Rxg1+ {und Schwarz kann entspannen.} 52. Kh2 Qxc1 53. Bg2 Rxg2+ 54. Kxg2 Qxg5 55. Kf3 Kd6 56. Ke4 Kc5 (56... Qxg4+ {wird mattgesetzt.} 57. Kd3 Kc5 58. Ke3 Kc4 59. Kd2 Qe4 60. Kc1 Qe2 61. Kb1 Kb3 62. Kc1 Qe1#) 57. Kd3 Qxg4 58. Ke3 Kc4 (58... Qxa4 {führt zum Matt.} 59. Kf3 Qh4 60. Ke2 Kd4 61. Kf3 Kd3 62. Kg2 Ke2 63. Kg1 Kf3 64. Kf1 Qh1#) 59. Kd2 Qe4 60. Kc1 Qe2 61. Kb1 Kb3 62. Kc1 Qe1#) 1/2-1/2

[Event "Budapest IM-A ONE WEEK Feb 2024"]
[Site "Budapest"]
[Date "2024.02.27"]
[Round "3"]
[White "Fodor, Balazs"]
[Black "Jakab, Attila"]
[Result "1/2-1/2"]
[ECO "A11"]
[WhiteElo "2215"]
[BlackElo "2278"]
[Annotator "TA"]
[PlyCount "51"]
[EventDate "2024.02.25"]
[EventType "tourn"]
[EventCountry "HUN"]
[SourceTitle "playchess.com"]
[Source "ChessBase"]
[SourceQuality "1"]
[TimeControl "5400+30"]

{[%evp 9,51,1,0,0,41,18,14,17,16,16,51,16,17,22,22,22,29,22,29,15,15,6,58,54,54,25,31,29,59,62,60,39,41,37,75,74,75,71,191,233,187,35,27,28]} 1. Nf3 {[%emt 0:00:03]} d5 {[%emt 0:12:23]} 2. e3 {[%emt 0:00:21]} Nf6 {[%emt 0:00:04]} 3. c4 {[%emt 0:00:11]} e6 {[%emt 0:00:03]} 4. Nc3 {[%emt 0:00:17]} c6 {[%emt 0:01:04]} 5. b3 {[%emt 0:01:22]} Nbd7 {[%emt 0:01:36]} 6. Qc2 {[%emt 0:00:14]} g6 {[%emt 0:02:53]} 7. Bb2 {[%emt 0:00:09]} Bg7 {[%emt 0:00:03]} 8. Be2 {[%emt 0:02:41] The position is equal.} O-O {[%emt 0:00:08]} 9. d4 {[%emt 0:00:32]} Qe7 {[%emt 0:00:52]} 10. O-O {[%emt 0:02:59]} b6 {[%emt 0:00:56]} 11. a4 {[%emt 0:09:14][%cal Ba2a4,Ba4a5,Ba5a6][%mdl 32]} Bb7 {[%emt 0:02:35]} 12. cxd5 {[%emt 0:05:13]} Nxd5 {[%emt 0:01:46]} 13. Nxd5 {[%emt 0:00:24]} exd5 {[%emt 0:00:08]} 14. a5 {[%emt 0:09:04] [#] Hoping for a6.} c5 {[%emt 0:00:27]} 15. dxc5 {[%emt 0:09:34]} bxc5 {[%emt 0:01:08]} ({Black should try} 15... Bxb2 $11 16. Qxb2 bxc5) 16. Bxg7 $14 {[%emt 0:01:21]} Kxg7 {[%emt 0:00:04]} 17. a6 {[%emt 0:03:44]} Bc6 {[%emt 0:01:03][%cal Bb7c6,Bc6d7,Bd7c8][%mdl 32]} 18. b4 $36 {[%emt 0:00:35][%mdl 2048] And now b5 would win. White is pushing.} Rac8 {[%emt 0:01:56]} 19. bxc5 {[%emt 0:01:39]} Nxc5 {[%emt 0:00:13]} 20. Qc3+ {[%emt 0:10:59]} Kg8 {[%emt 0:00:34]} 21. Qa3 {[%emt 0:03:35]} Rfe8 {[%emt 0:00:19]} 22. Nd4 {[%emt 0:01:40] Black must now prevent Nxc6.} Bd7 {[%emt 0:00:36]} 23. Rfc1 {[%emt 0:07:52]} Ne6 {[%emt 0:00:33]} (23... Qd6 $16) 24. Rxc8 $18 {[%emt 0:05:09]} Bxc8 {[%emt 0:00:06] [#]} 25. Qxe7 $2 {[%emt 0:04:29]} (25. Nc6 $1 $18 {[%cal Rc6e7]} Qc7 26. Rc1) 25... Rxe7 $14 {[%emt 0:00:06]} 26. Nb5 {[%emt 0:08:03] Weighted Error Value: White=0.18 (very precise) /Black=0.23 (precise) .  Mistake:       	White=1     	Black=2      Inaccurate:     	White=2     	Black=4      OK:         	White=5     	Black=6      Best:        	White=2     	Black=1} 1/2-1/2

[Event "Budapest IM-A ONE WEEK Feb 2024"]
[Site "Budapest"]
[Date "2024.02.27"]
[Round "3"]
[White "Foldes, Marton Gabor"]
[Black "Szeberenyi, Adam"]
[Result "0-1"]
[ECO "B07"]
[WhiteElo "2119"]
[BlackElo "2255"]
[Annotator "TA"]
[PlyCount "92"]
[EventDate "2024.02.25"]
[EventType "tourn"]
[EventCountry "HUN"]
[SourceTitle "playchess.com"]
[Source "ChessBase"]
[SourceQuality "1"]
[TimeControl "5400+30"]

{[%evp 11,92,28,28,25,30,35,30,6,39,27,33,0,46,-5,15,20,28,-18,-24,-14,-25,-85,-22,-8,-7,-7,-26,-39,-35,-61,0,-298,-285,-349,-245,-233,-190,-347,-356,-350,-338,-323,-250,-243,-260,-268,-247,-264,-152,-126,-146,-146,-152,-191,-124,-164,-89,-150,-159,-271,-239,-240,-250,-297,-298,-295,-295,-417,-403,-657,-486,-482,-482,-570,-565,-564,-549,-601,-232,-5477,-5312,-4133,-4132]} 1. e4 {[%emt 0:00:01]} g6 {[%emt 0:00:03]} 2. d4 {[%emt 0:00:04]} Bg7 {[%emt 0:00:03]} 3. Nc3 {[%emt 0:00:04]} d6 {[%emt 0:00:02]} 4. h4 {[%emt 0:00:04]} Nf6 {[%emt 0:00:49]} 5. Be2 {[%emt 0:00:05]} h5 {[%emt 0:10:33]} 6. Nf3 {[%emt 0:00:21]} O-O {[%emt 0:06:00]} 7. O-O {[%emt 0:00:47]} c6 {[%emt 0:05:38]} 8. a4 {[%emt 0:02:30]} Na6 {[%emt 0:05:38][%cal Bb8a6,Ba6b4,Bb4c6][%mdl 32]} 9. Bg5 {[%emt 0:14:07] Weiß hat minimalen Vorteil.} Nb4 {[%emt 0:03:11]} 10. a5 {[%emt 0:05:42]} Qc7 {[%emt 0:03:36]} 11. Ne1 {[%emt 0:30:06]} c5 {[%emt 0:05:27]} (11... e5 $11 {ist überlegen.}) 12. Nb5 {[%emt 0:05:16]} (12. d5 $14) 12... Qd7 {[%emt 0:02:42]} 13. c3 {[%emt 0:05:47] Droht Bxf6 und aus.} Nc6 {[%emt 0:01:22]} 14. f3 {[%emt 0:16:57]} (14. d5 $142) 14... a6 $11 {[%emt 0:02:04]} 15. Na3 {[%emt 0:00:58]} Nxa5 {[%emt 0:02:20]} 16. d5 {[%emt 0:07:23] [#]} (16. Be3 $11) 16... b5 {[%emt 0:05:31]} (16... Qc7 $1 $17) 17. b4 $1 {[%emt 0:00:16]} cxb4 {[%emt 0:05:24]} 18. cxb4 {[%emt 0:00:04] [#]} Nc4 {[%emt 0:00:11]} 19. Nxc4 {[%emt 0:02:57]} (19. Bxc4 bxc4) 19... bxc4 {[%emt 0:00:07]} 20. Bxc4 {[%emt 0:00:06]} Qc7 {[%emt 0:02:26]} ({Günstiger ist} 20... Qa7+ $15 21. Kh2 Nh7) 21. Qb3 $2 {[%emt 0:01:53][%mdl 8192] [#]} (21. Rc1 $1 $11) 21... Nxe4 $1 $19 {[%emt 0:00:42][%mdl 512]} 22. Rc1 {[%emt 0:02:54]} (22. Ra2 Nxg5) 22... Bd4+ {[%emt 0:08:17]} 23. Kh2 {[%emt 0:00:44]} Be5+ {[%emt 0:00:23]} 24. Kg1 $2 {[%emt 0:00:59]} (24. f4 {einziger Zug.} Bg7 (24... Nd2 $2 25. Qd1 $17) 25. Nf3) 24... Nxg5 {[%emt 0:02:13]} 25. hxg5 {[%emt 0:00:10]} Qb6+ {[%emt 0:00:06]} 26. Kh1 {[%emt 0:00:10]} Qd4 {[%emt 0:00:09]} 27. f4 {[%emt 0:00:41]} Bxf4 {[%emt 0:00:36]} 28. Nf3 {[%emt 0:00:25]} Qa7 {[%emt 0:02:53]} 29. Rce1 {[%emt 0:00:32][%cal Bc1e1,Be1e4,Be4f4][%mdl 32]} Bg4 {[%emt 0:01:32]} (29... Bg3 $19 30. Re3 Bf5) 30. Re4 $17 {[%emt 0:01:13]} Bxf3 {[%emt 0:03:45]} 31. Rxf4 {[%emt 0:01:03]} Bg4 {[%emt 0:00:05]} 32. Qd3 {[%emt 0:01:16]} Bf5 {[%emt 0:01:37] Gegen Qe4 gerichtet.} (32... a5 $19 33. bxa5 Qxa5) 33. Qf3 {[%emt 0:00:52]} Rac8 {[%emt 0:00:41]} ({Besser ist} 33... a5 $19 34. bxa5 Qxa5) 34. Be2 {[%emt 0:00:32]} ({Vorzuziehen ist} 34. Bd3 Bxd3 35. Qxd3) 34... e6 {[%emt 0:09:58]} 35. Qg3 {[%emt 0:00:28]} (35. dxe6 $17 fxe6 (35... Bxe6 36. Rf6 $17) 36. Bd3) 35... Rc2 {[%emt 0:00:50]} ({Keinesfalls} 35... exd5 36. Rxf5 gxf5 37. g6 fxg6 38. Qxg6+ Qg7 39. Qxd6 $19) 36. Bd1 {[%emt 0:00:31]} Rc1 {[%emt 0:02:09] ...e5 ist eine echte Drohung.} 37. Qa3 {[%emt 0:00:30]} Rfc8 {[%emt 0:01:58]} 38. dxe6 {[%emt 0:00:18]} Bxe6 {[%emt 0:01:46]} 39. b5 {[%emt 0:00:43]} (39. Be2 $142 R1c2 40. Qd3) 39... R8c4 $19 {[%emt 0:02:29]} ({Nicht} 39... Qc5 40. Qxc5 R8xc5 41. bxa6 $19) 40. Qxd6 {[%emt 0:00:22]} (40. Rxc4 $142 Rxc4 41. Qg3) 40... Rxf4 {[%emt 0:00:17]} 41. Qxf4 {[%emt 0:00:17]} Rc4 {[%emt 0:00:07]} 42. Qg3 {[%emt 0:00:36]} axb5 {[%emt 0:00:11]} 43. Be2 {[%emt 0:00:36]} Re4 {[%emt 0:02:32]} 44. Bxb5 {[%emt 0:00:37]} Rg4 $2 {[%emt 0:01:14]} (44... Qb7 45. Be8 Rg4) 45. Qe1 $2 {[%emt 0:00:20]} (45. Qf2 Qb7 46. Be2 Rxg5 47. Kg1) 45... Qb7 {[%emt 0:00:22]} 46. Qe2 {[%emt 0:00:40] [#]} Rxg2 $3 {[%emt 0:00:13][%mdl 512] Gewichteter Fehlerwert: Weiß=0.61/Schwarz=0.41.  Verlustzug:     	Weiß=1     	---        Fehler:       	Weiß=9     	Schwarz=7     Ungenau:       	Weiß=3     	Schwarz=1     OK:         	Weiß=10    	Schwarz=17    Bester:       	Weiß=3     	---        Stark:        	Weiß=1     	---        Brilliant:      	---       	Schwarz=1} 0-1

[Event "Budapest IM-A ONE WEEK Feb 2024"]
[Site "Budapest"]
[Date "2024.02.28"]
[Round "4.1"]
[White "Meessen, Rudolf"]
[Black "Jakab, Attila"]
[Result "0-1"]
[ECO "D00"]
[WhiteElo "2169"]
[BlackElo "2278"]
[Annotator "TA"]
[PlyCount "64"]
[EventDate "2024.02.25"]
[EventType "tourn"]
[EventCountry "HUN"]
[SourceTitle "playchess.com"]
[Source "ChessBase"]
[SourceQuality "1"]
[TimeControl "5400+30"]

{[%evp 9,64,0,37,-23,-29,-36,-35,-42,-14,-29,0,-10,93,96,130,-500,-512,-451,-444,-794,-275,-279,-274,-537,-563,-493,-444,-449,-406,-579,-424,-518,-413,-602,-598,-931,-925,-913,-750,-991,-950,-2029,-2059,-2002,-2019,-1736,-1145,-1203,-1195,-1190,-1141,-29982,-29982,-29990,-29991,-29995,-1833]} 1. d4 {[%emt 0:02:02]} d5 {[%emt 0:26:04]} 2. Nc3 {[%emt 0:00:18]} e6 {[%emt 0:00:09]} 3. Bf4 {[%emt 0:00:25]} Bd6 {[%emt 0:00:05]} 4. e3 {[%emt 0:00:04]} Nf6 {[%emt 0:00:31][%cal Bg8f6,Bf6e4,Be4c3,Bc3d1][%mdl 32]} 5. Qf3 {[%emt 0:00:22]} c5 {[%emt 0:00:44]} 6. Nb5 {[%emt 0:25:36]} (6. g4 $14) 6... Bxf4 $11 {[%emt 0:00:35]} 7. Qxf4 {[%emt 0:00:10]} O-O {[%emt 0:00:12]} 8. dxc5 {[%emt 0:01:52] Black is slightly better.} Ne4 {[%emt 0:03:28][%cal Ob8d7]} (8... Nbd7 {simplifies} 9. Qc7 a6 10. Qxd8 Rxd8 11. Nd4 Nxc5 12. Ngf3 Nfe4) 9. Nf3 {[%emt 0:04:10] aiming for Nc7.} (9. f3 $5 Bd7 10. fxe4 Bxb5 11. Nf3 $11) 9... Qa5+ {[%emt 0:03:54][%mdl 1024] Black has compensation.} 10. c3 {[%emt 0:00:30]} a6 {[%emt 0:00:21] [#]} (10... Nc6 $11 {keeps the balance.}) 11. Nc7 $1 $16 {[%emt 0:15:30]} Ra7 {[%emt 0:06:11][%cal Ob8d7] [#]} 12. b4 $2 {[%emt 0:00:51][%mdl 8192] White does not recover from this.} (12. Nxd5 $1 $16 {is necessary to keep the advantage.} exd5 13. Qxb8 Qxc5 14. Qf4) 12... Qa3 $19 {[%emt 0:00:14]} 13. Rd1 {[%emt 0:11:14]} Nxc3 {[%emt 0:00:31]} (13... Qxa2 $2 14. Ng5 Nxg5 (14... Nxc3 15. Bd3 $11) 15. Bd3 $19 (15. Qxg5 $2 Qb2 $19)) 14. Ne8 {[%emt 0:18:41]} (14. Be2 $142) 14... Nc6 $2 {[%emt 0:03:27]} (14... Nxd1 15. Nf6+ gxf6 16. Qg4+ Kh8) 15. Nxg7 {[%emt 0:11:22] Black must now prevent Nh5.} Qxb4 {[%emt 0:01:56]} (15... Kxg7 16. Qg5+ Kh8 17. Qf6+ Kg8 18. Qg5+ Kh8 19. Qf6+ Kg8 20. Qg5+ Kh8 $11) 16. Qh6 {[%emt 0:02:55]} (16. Nh5 Qxf4 (16... Nxd1+ 17. Qxb4 Nxb4 18. Kxd1 $19) 17. exf4 Nxd1 18. Kxd1) 16... Nxd1+ {[%emt 0:00:19]} 17. Nd2 {[%emt 0:00:05] And now Nh5 would win.} Qc3 {[%emt 0:02:27] Hoping for ...Nb2.} 18. Nh5 {[%emt 0:00:10]} f5 $1 {[%emt 0:00:05]} 19. Kxd1 {[%emt 0:01:26]} (19. Be2 $142 Nxe3 20. fxe3) 19... Bd7 {[%emt 0:01:15]} ({Stronger than} 19... Qxc5 20. Qg7#) 20. h4 {[%emt 0:00:40]} Be8 {[%emt 0:01:09]} ({Weaker is} 20... Qxc5 21. Qg7#) 21. Qg5+ {[%emt 0:01:48]} (21. Nb3 $142 Bxh5+ 22. Qxh5) 21... Kh8 {[%emt 0:00:24]} 22. Qh6 {[%emt 0:00:05][%cal Rh6f8]} Bxh5+ {[%emt 0:00:27]} ({Not} 22... Qxc5 23. Qg7#) 23. Qxh5 {[%emt 0:00:30]} d4 {[%emt 0:00:30]} 24. Qh6 {[%emt 0:00:45]} Raa8 {[%emt 0:00:08]} 25. Qxe6 {[%emt 0:00:54]} dxe3 {[%emt 0:00:19]} 26. Qxe3 {[%emt 0:00:13]} Qa1+ {[%emt 0:00:14]} 27. Kc2 {[%emt 0:00:01]} Rad8 {[%emt 0:00:35] Strongly threatening ...Nd4+.} 28. Qc3+ {[%emt 0:00:16]} Nd4+ {[%emt 0:00:10]} 29. Kd3 {[%emt 0:00:10]} Qd1 {[%emt 0:00:53] ( -> ...Rf6)} 30. Rh3 {[%emt 0:00:45]} Rf6 {[%emt 0:00:10] Black mates.} 31. Kc4 {[%emt 0:00:15]} b5+ {[%emt 0:00:11]} 32. Kd3 {[%emt 0:01:39]} Nc2+ {[%emt 0:00:24] Weighted Error Value: White=1.35/Black=0.78.  Loses game:     	White=1     	---        Mistake:       	White=4     	Black=2      Inaccurate:     	White=1     	Black=2      OK:         	White=4     	Black=2      Best:        	White=2     	Black=3      Strong:       	White=1     	Black=1} 0-1

[Event "Budapest IM-A ONE WEEK Feb 2024"]
[Site "Budapest"]
[Date "2024.02.28"]
[Round "4.2"]
[White "Szeberenyi, Adam"]
[Black "Fodor, Balazs"]
[Result "1/2-1/2"]
[ECO "A49"]
[WhiteElo "2255"]
[BlackElo "2215"]
[Annotator "RC"]
[PlyCount "51"]
[EventDate "2024.02.25"]
[EventType "tourn"]
[EventCountry "HUN"]
[SourceTitle "playchess.com"]
[Source "ChessBase"]
[SourceQuality "1"]
[TimeControl "5400+30"]

1. d4 {[%emt 0:00:04]} Nf6 {[%emt 0:01:16]} 2. Nf3 {[%emt 0:00:23]} g6 {[%emt 0:00:27]} 3. g3 {[%emt 0:00:04]} Bg7 {[%emt 0:00:31]} 4. Bg2 {[%emt 0:00:05]} O-O {[%emt 0:00:17]} 5. O-O {[%emt 0:00:04]} d6 {[%emt 0:00:09]} 6. a4 {[%emt 0:04:25]} Nbd7 {[%emt 0:00:14]} 7. Nc3 {[%emt 0:00:20]} a5 {[%emt 0:01:03]} 8. e4 {[%emt 0:00:48]} e5 {[%emt 0:00:48]} 9. Re1 {[%emt 0:16:26]} h6 {[%emt 0:06:17]} 10. h3 {[%emt 0:03:31]} exd4 {[%emt 0:05:43]} 11. Nxd4 {[%emt 0:00:10]} Nc5 {[%emt 0:00:09]} 12. Ndb5 {[%emt 0:08:15]} Nfd7 {[%emt 0:22:24]} 13. Be3 {[%emt 0:02:03]} Kh7 {[%emt 0:00:38]} 14. Bd4 {[%emt 0:01:24]} Ne6 {[%emt 0:07:34]} 15. Bxg7 {[%emt 0:01:06]} Kxg7 {[%emt 0:00:07]} 16. Kh2 {[%emt 0:04:22]} h5 {[%emt 0:00:56]} 17. Qd2 {[%emt 0:09:11]} h4 {[%emt 0:07:22]} 18. g4 {[%emt 0:03:15]} g5 {[%emt 0:03:08]} 19. Nd4 {[%emt 0:04:28]} Nxd4 {[%emt 0:02:41]} 20. Qxd4+ {[%emt 0:00:03]} Ne5 {[%emt 0:00:10]} 21. Nd5 {[%emt 0:00:23]} f6 {[%emt 0:10:40]} 22. f4 {[%emt 0:00:50]} c6 {[%emt 0:05:02]} 23. fxe5 {[%emt 0:05:12]} fxe5 {[%emt 0:00:19]} 24. Qb6 {[%emt 0:00:34]} cxd5 {[%emt 0:00:08]} 25. Qxd8 {[%emt 0:00:06]} Rxd8 {[%emt 0:00:04]} 26. exd5 {[%emt 0:00:38]} 1/2-1/2